[Event "Titled Tuesday Blitz January 03 Early 2023"]
[White "Shipov, Sergei"]
[Black "Maksimovic, Bojan"]
[WhiteFideId "4113624"]
[BlackFideId "14408120"]
[WhiteElo "2541"]
[BlackElo "2486"]
[Result "0-1"]
[Round "10"]
[TimeControl "180+2"]
[Date "2023.01.03"]
[WhiteClock "0:00:01"]
[BlackClock "0:00:18"]

1. d4 {[%clk 0:03:00]}  g6 {[%clk 0:03:00]} 2. c4 {[%clk 0:03:00]}  Bg7 {[%clk 0:03:00]} 3. e4 {[%clk 0:03:01]}  d6 {[%clk 0:03:00]} 4. Nc3 {[%clk 0:03:00]}  Nf6 {[%clk 0:03:01]} 5. Be2 {[%clk 0:03:00]}  Nbd7 {[%clk 0:03:00]} 6. Nf3 {[%clk 0:03:00]}  e5 {[%clk 0:03:00]} 7. O-O {[%clk 0:03:00]}  O-O {[%clk 0:03:00]} 8. Be3 {[%clk 0:03:00]}  c6 {[%clk 0:03:01]} 9. d5 {[%clk 0:03:00]}  c5 {[%clk 0:03:01]} 10. Ne1 {[%clk 0:03:01]}  Kh8 {[%clk 0:02:59]} 11. Nd3 {[%clk 0:03:01]}  Ng8 {[%clk 0:02:58]} 12. Qd2 {[%clk 0:03:00]}  f5 {[%clk 0:02:53]} 13. f4 {[%clk 0:03:00]}  g5 {[%clk 0:02:53]} 14. g3 {[%clk 0:02:59]}  exf4 {[%clk 0:02:41]} 15. gxf4 {[%clk 0:02:58]}  g4 {[%clk 0:02:41]} 16. e5 {[%clk 0:02:03]}  dxe5 {[%clk 0:02:40]} 17. Nxc5 {[%clk 0:02:00]}  Nxc5 {[%clk 0:01:22]} 18. Bxc5 {[%clk 0:01:59]}  Rf7 {[%clk 0:01:19]} 19. fxe5 {[%clk 0:01:40]}  Bxe5 {[%clk 0:01:20]} 20. Bd4 {[%clk 0:01:18]}  Bxd4+ {[%clk 0:01:19]} 21. Qxd4+ {[%clk 0:01:18]}  Qf6 {[%clk 0:01:20]} 22. Qxf6+ {[%clk 0:01:15]}  Rxf6 {[%clk 0:01:21]} 23. Bd3 {[%clk 0:01:07]}  Bd7 {[%clk 0:01:21]} 24. Rae1 {[%clk 0:01:06]}  Kg7 {[%clk 0:01:21]} 25. c5 {[%clk 0:00:56]}  a5 {[%clk 0:01:11]} 26. a3 {[%clk 0:00:54]}  a4 {[%clk 0:01:10]} 27. Re5 {[%clk 0:00:46]}  Nh6 {[%clk 0:00:56]} 28. Rf4 {[%clk 0:00:44]}  Rc8 {[%clk 0:00:45]} 29. d6 {[%clk 0:00:40]}  Re6 {[%clk 0:00:36]} 30. Rxe6 {[%clk 0:00:38]}  Bxe6 {[%clk 0:00:37]} 31. Nxa4 {[%clk 0:00:38]}  Kf6 {[%clk 0:00:37]} 32. b4 {[%clk 0:00:20]}  Ra8 {[%clk 0:00:32]} 33. Bb5 {[%clk 0:00:20]}  Bb3 {[%clk 0:00:18]} 34. Nb6 {[%clk 0:00:17]}  Rxa3 {[%clk 0:00:19]} 35. d7 {[%clk 0:00:15]}  Nf7 {[%clk 0:00:18]} 36. Rd4 {[%clk 0:00:15]}  Nd8 {[%clk 0:00:18]} 37. Nd5+ {[%clk 0:00:07]}  Ke5 {[%clk 0:00:18]} 38. Rd3 {[%clk 0:00:06]}  Ra1+ {[%clk 0:00:18]} 39. Kf2 {[%clk 0:00:05]}  Bxd5 {[%clk 0:00:18]} 40. Re3+ {[%clk 0:00:05]}  Be4 {[%clk 0:00:19]} 41. Rc3 {[%clk 0:00:04]}  f4 {[%clk 0:00:18]} 42. Rb3 {[%clk 0:00:01]}  h5 {[%clk 0:00:18]} 0-1


[Site "https://www.chess.com"]

[Event "Titled Tuesday Blitz January 03 Early 2023"]
[White "Kilic, Eray"]
[Black "Csonka, Balazs"]
[WhiteFideId "44517173"]
[BlackFideId "742910"]
[WhiteElo "2414"]
[BlackElo "2496"]
[Result "0-1"]
[Round "10"]
[TimeControl "180+2"]
[Date "2023.01.03"]
[WhiteClock "0:00:12"]
[BlackClock "0:00:14"]

1. e4 {[%clk 0:03:00]}  Nf6 {[%clk 0:02:58]} 2. e5 {[%clk 0:03:01]}  Nd5 {[%clk 0:02:59]} 3. d4 {[%clk 0:03:01]}  d6 {[%clk 0:02:59]} 4. Nf3 {[%clk 0:03:02]}  dxe5 {[%clk 0:02:58]} 5. dxe5 {[%clk 0:03:03]}  Nc6 {[%clk 0:02:51]} 6. Bc4 {[%clk 0:03:01]}  Nb6 {[%clk 0:02:41]} 7. Bd3 {[%clk 0:02:55]}  Bg4 {[%clk 0:02:38]} 8. Bf4 {[%clk 0:02:54]}  e6 {[%clk 0:02:32]} 9. Nc3 {[%clk 0:02:53]}  Nd5 {[%clk 0:02:24]} 10. Nxd5 {[%clk 0:02:20]}  Qxd5 {[%clk 0:02:25]} 11. Be2 {[%clk 0:02:20]}  Qe4 {[%clk 0:02:12]} 12. Be3 {[%clk 0:01:45]}  Rd8 {[%clk 0:02:00]} 13. Bd3 {[%clk 0:01:04]}  Bb4+ {[%clk 0:01:26]} 14. Kf1 {[%clk 0:00:56]}  Qd5 {[%clk 0:01:09]} 15. a3 {[%clk 0:00:53]}  Bc5 {[%clk 0:00:52]} 16. Be2 {[%clk 0:00:44]}  Bxe3 {[%clk 0:00:31]} 17. Qxd5 {[%clk 0:00:39]}  Rxd5 {[%clk 0:00:32]} 18. c4 {[%clk 0:00:38]}  Rd8 {[%clk 0:00:22]} 19. fxe3 {[%clk 0:00:38]}  Ke7 {[%clk 0:00:22]} 20. Rc1 {[%clk 0:00:34]}  Bxf3 {[%clk 0:00:18]} 21. Bxf3 {[%clk 0:00:35]}  Nxe5 {[%clk 0:00:18]} 22. Bxb7 {[%clk 0:00:34]}  Rb8 {[%clk 0:00:18]} 23. Be4 {[%clk 0:00:33]}  Rxb2 {[%clk 0:00:18]} 24. h3 {[%clk 0:00:31]}  Rd8 {[%clk 0:00:17]} 25. Kg1 {[%clk 0:00:29]}  Rdd2 {[%clk 0:00:16]} 26. Kh2 {[%clk 0:00:11]}  f5 {[%clk 0:00:16]} 27. Ba8 {[%clk 0:00:12]}  Rd8 {[%clk 0:00:14]} 0-1


[Site "https://www.chess.com"]

[Event "Titled Tuesday Blitz January 03 Early 2023"]
[White "Tan, Zhongyi"]
[Black "Goltsev, Dmitry"]
[WhiteFideId "8603642"]
[BlackFideId "24176710"]
[WhiteElo "2517"]
[BlackElo "2269"]
[Result "1-0"]
[Round "10"]
[TimeControl "180+2"]
[Date "2023.01.03"]
[WhiteClock "0:00:25"]
[BlackClock "0:00:27"]

1. e4 {[%clk 0:02:52]}  e6 {[%clk 0:03:00]} 2. d4 {[%clk 0:02:49]}  d5 {[%clk 0:03:01]} 3. Nc3 {[%clk 0:02:45]}  c5 {[%clk 0:03:01]} 4. exd5 {[%clk 0:02:41]}  exd5 {[%clk 0:03:02]} 5. Bb5+ {[%clk 0:02:40]}  Nc6 {[%clk 0:03:01]} 6. Qe2+ {[%clk 0:02:34]}  Be6 {[%clk 0:03:00]} 7. Nf3 {[%clk 0:02:30]}  Nf6 {[%clk 0:02:57]} 8. O-O {[%clk 0:02:29]}  Be7 {[%clk 0:02:56]} 9. dxc5 {[%clk 0:02:28]}  Bxc5 {[%clk 0:02:53]} 10. Ng5 {[%clk 0:02:26]}  O-O {[%clk 0:02:43]} 11. Nxe6 {[%clk 0:02:16]}  fxe6 {[%clk 0:02:44]} 12. Bxc6 {[%clk 0:02:10]}  bxc6 {[%clk 0:02:42]} 13. Qxe6+ {[%clk 0:02:10]}  Kh8 {[%clk 0:02:42]} 14. Qxc6 {[%clk 0:02:10]}  Rc8 {[%clk 0:02:38]} 15. Qe6 {[%clk 0:02:09]}  d4 {[%clk 0:02:36]} 16. Na4 {[%clk 0:02:08]}  d3 {[%clk 0:02:30]} 17. Nxc5 {[%clk 0:01:59]}  Rxc5 {[%clk 0:02:29]} 18. cxd3 {[%clk 0:01:55]}  Qxd3 {[%clk 0:02:30]} 19. Be3 {[%clk 0:01:49]}  Rc2 {[%clk 0:02:28]} 20. Rad1 {[%clk 0:01:47]}  Qb5 {[%clk 0:02:21]} 21. Bd4 {[%clk 0:01:23]}  h6 {[%clk 0:02:13]} 22. h3 {[%clk 0:01:20]}  a5 {[%clk 0:02:01]} 23. Bxf6 {[%clk 0:01:19]}  Rxf6 {[%clk 0:01:58]} 24. Rd8+ {[%clk 0:01:17]}  Kh7 {[%clk 0:01:59]} 25. Qg8+ {[%clk 0:01:07]}  Kg6 {[%clk 0:01:58]} 26. Rd4 {[%clk 0:00:56]}  h5 {[%clk 0:01:43]} 27. a4 {[%clk 0:00:54]}  Qe2 {[%clk 0:01:36]} 28. Rd7 {[%clk 0:00:45]}  Qe6 {[%clk 0:00:31]} 29. Rxg7+ {[%clk 0:00:39]}  Kf5 {[%clk 0:00:31]} 30. Qh7+ {[%clk 0:00:32]}  Rg6 {[%clk 0:00:27]} 31. Qxh5+ {[%clk 0:00:25]} 1-0


[Site "https://www.chess.com"]

[Event "Titled Tuesday Blitz January 03 Early 2023"]
[White "Atakhan, Abtin"]
[Black "Santos Ruiz, Miguel"]
[WhiteFideId "22502203"]
[BlackFideId "22291482"]
[WhiteElo "2422"]
[BlackElo "2590"]
[Result "0-1"]
[Round "10"]
[TimeControl "180+2"]
[Date "2023.01.03"]
[WhiteClock "0:00:02"]
[BlackClock "0:00:32"]

1. Nf3 {[%clk 0:03:00]}  c5 {[%clk 0:02:58]} 2. c4 {[%clk 0:03:01]}  Nc6 {[%clk 0:02:56]} 3. g3 {[%clk 0:03:00]}  Nf6 {[%clk 0:02:55]} 4. Bg2 {[%clk 0:03:00]}  g6 {[%clk 0:02:55]} 5. O-O {[%clk 0:03:00]}  Bg7 {[%clk 0:02:55]} 6. Nc3 {[%clk 0:03:00]}  O-O {[%clk 0:02:55]} 7. d4 {[%clk 0:03:01]}  cxd4 {[%clk 0:02:55]} 8. Nxd4 {[%clk 0:03:02]}  d6 {[%clk 0:02:50]} 9. Nxc6 {[%clk 0:03:01]}  bxc6 {[%clk 0:02:50]} 10. Bxc6 {[%clk 0:03:02]}  Bh3 {[%clk 0:02:45]} 11. Bxa8 {[%clk 0:02:54]}  Qxa8 {[%clk 0:02:45]} 12. f3 {[%clk 0:02:55]}  Bxf1 {[%clk 0:02:44]} 13. Qxf1 {[%clk 0:02:36]}  Rc8 {[%clk 0:02:42]} 14. e4 {[%clk 0:02:28]}  Qc6 {[%clk 0:02:39]} 15. Be3 {[%clk 0:02:07]}  a6 {[%clk 0:02:24]} 16. b3 {[%clk 0:01:44]}  Ng4 {[%clk 0:02:22]} 17. Bd2 {[%clk 0:01:40]}  Ne5 {[%clk 0:01:44]} 18. Rd1 {[%clk 0:01:33]}  f5 {[%clk 0:01:38]} 19. Nd5 {[%clk 0:01:24]}  Qb7 {[%clk 0:01:35]} 20. Qe2 {[%clk 0:01:14]}  e6 {[%clk 0:01:21]} 21. Nc3 {[%clk 0:01:10]}  Rf8 {[%clk 0:01:14]} 22. Bf4 {[%clk 0:00:53]}  g5 {[%clk 0:01:12]} 23. Bxe5 {[%clk 0:00:45]}  Bxe5 {[%clk 0:01:11]} 24. Nb1 {[%clk 0:00:28]}  g4 {[%clk 0:00:56]} 25. Nd2 {[%clk 0:00:17]}  f4 {[%clk 0:00:48]} 26. fxg4 {[%clk 0:00:03]}  fxg3 {[%clk 0:00:45]} 27. hxg3 {[%clk 0:00:04]}  Bd4+ {[%clk 0:00:43]} 28. Kh1 {[%clk 0:00:03]}  Rf2 {[%clk 0:00:44]} 29. Qd3 {[%clk 0:00:03]}  Qg7 {[%clk 0:00:44]} 30. Nf3 {[%clk 0:00:01]}  Qh6+ {[%clk 0:00:43]} 31. Nh4 {[%clk 0:00:02]}  e5 {[%clk 0:00:34]} 32. Rd2 {[%clk 0:00:02]}  Qxd2 {[%clk 0:00:32]} 0-1


[Site "https://www.chess.com"]

[Event "Titled Tuesday Blitz January 03 Early 2023"]
[White "Mekhitarian, Krikor Sevag"]
[Black "Atanasov, Anthony"]
[WhiteFideId "2107660"]
[BlackFideId "2623897"]
[WhiteElo "2537"]
[BlackElo "2368"]
[Result "1-0"]
[Round "10"]
[TimeControl "180+2"]
[Date "2023.01.03"]
[WhiteClock "0:00:03"]
[BlackClock "0:00:02"]

1. e4 {[%clk 0:03:00]}  e5 {[%clk 0:03:00]} 2. Nf3 {[%clk 0:03:00]}  Nf6 {[%clk 0:03:00]} 3. d3 {[%clk 0:02:53]}  Nc6 {[%clk 0:03:00]} 4. c3 {[%clk 0:02:51]}  d5 {[%clk 0:02:59]} 5. Nbd2 {[%clk 0:02:51]}  a5 {[%clk 0:02:57]} 6. Be2 {[%clk 0:02:50]}  a4 {[%clk 0:02:57]} 7. O-O {[%clk 0:02:49]}  Bc5 {[%clk 0:02:54]} 8. Rb1 {[%clk 0:02:16]}  Ng4 {[%clk 0:02:49]} 9. d4 {[%clk 0:01:52]}  exd4 {[%clk 0:02:43]} 10. cxd4 {[%clk 0:01:40]}  Bb6 {[%clk 0:02:37]} 11. e5 {[%clk 0:01:34]}  Bf5 {[%clk 0:02:36]} 12. h3 {[%clk 0:01:09]}  h5 {[%clk 0:02:13]} 13. Ra1 {[%clk 0:00:47]}  Nb4 {[%clk 0:01:57]} 14. a3 {[%clk 0:00:41]}  Bc2 {[%clk 0:01:42]} 15. Qe1 {[%clk 0:00:41]}  Nd3 {[%clk 0:01:42]} 16. Bxd3 {[%clk 0:00:41]}  Bxd3 {[%clk 0:01:43]} 17. Qd1 {[%clk 0:00:38]}  Bxf1 {[%clk 0:01:42]} 18. Nxf1 {[%clk 0:00:37]}  Nh6 {[%clk 0:01:41]} 19. Bg5 {[%clk 0:00:37]}  Qd7 {[%clk 0:01:41]} 20. Ng3 {[%clk 0:00:36]}  Nf5 {[%clk 0:01:41]} 21. Ne2 {[%clk 0:00:34]}  O-O {[%clk 0:01:32]} 22. Qd3 {[%clk 0:00:30]}  Ne7 {[%clk 0:01:10]} 23. Ng3 {[%clk 0:00:26]}  g6 {[%clk 0:01:00]} 24. Bf6 {[%clk 0:00:26]}  Nf5 {[%clk 0:00:52]} 25. Qd2 {[%clk 0:00:24]}  Kh7 {[%clk 0:00:29]} 26. Ng5+ {[%clk 0:00:22]}  Kg8 {[%clk 0:00:29]} 27. N5e4 {[%clk 0:00:13]}  Ba5 {[%clk 0:00:13]} 28. Qf4 {[%clk 0:00:08]}  Kh7 {[%clk 0:00:09]} 29. Ng5+ {[%clk 0:00:06]}  Kg8 {[%clk 0:00:09]} 30. Nf3 {[%clk 0:00:04]}  Kh7 {[%clk 0:00:05]} 31. Nxh5 {[%clk 0:00:04]}  gxh5 {[%clk 0:00:04]} 32. Qg5 {[%clk 0:00:05]}  Bd2 {[%clk 0:00:03]} 33. Qxh5+ {[%clk 0:00:03]}  Bh6 {[%clk 0:00:03]} 34. g4 {[%clk 0:00:04]}  Rg8 {[%clk 0:00:03]} 35. Kh2 {[%clk 0:00:04]}  Rg6 {[%clk 0:00:02]} 36. gxf5 {[%clk 0:00:01]}  Rxf6 {[%clk 0:00:02]} 37. exf6 {[%clk 0:00:01]}  Qd6+ {[%clk 0:00:03]} 38. Kh1 {[%clk 0:00:01]}  Qxf6 {[%clk 0:00:03]} 39. h4 {[%clk 0:00:01]}  Rg8 {[%clk 0:00:03]} 40. Ng5+ {[%clk 0:00:02]}  Kg7 {[%clk 0:00:02]} 41. Rg1 {[%clk 0:00:03]}  Kf8 {[%clk 0:00:02]} 42. Nh7+ {[%clk 0:00:03]} 1-0


[Site "https://www.chess.com"]

[Event "Titled Tuesday Blitz January 03 Early 2023"]
[White "Agasarov, Benik"]
[Black "Yeletsky, Ivan"]
[WhiteFideId "13314823"]
[BlackFideId "24180327"]
[WhiteElo "2235"]
[BlackElo "2494"]
[Result "0-1"]
[Round "10"]
[TimeControl "180+2"]
[Date "2023.01.03"]
[WhiteClock "0:00:54"]
[BlackClock "0:01:18"]

1. e4 {[%clk 0:03:00]}  Nf6 {[%clk 0:03:00]} 2. e5 {[%clk 0:02:57]}  Nd5 {[%clk 0:02:59]} 3. f4 {[%clk 0:02:56]}  c5 {[%clk 0:02:57]} 4. Qf3 {[%clk 0:02:50]}  e6 {[%clk 0:02:55]} 5. Nc3 {[%clk 0:02:48]}  Nc6 {[%clk 0:02:54]} 6. Nxd5 {[%clk 0:02:48]}  Nd4 {[%clk 0:02:47]} 7. Qd1 {[%clk 0:02:48]}  exd5 {[%clk 0:02:47]} 8. c3 {[%clk 0:02:49]}  Nc6 {[%clk 0:02:39]} 9. Nf3 {[%clk 0:02:47]}  d6 {[%clk 0:02:38]} 10. Bb5 {[%clk 0:02:45]}  Be7 {[%clk 0:02:30]} 11. O-O {[%clk 0:02:45]}  O-O {[%clk 0:02:30]} 12. d4 {[%clk 0:02:45]}  Qb6 {[%clk 0:02:23]} 13. Ba4 {[%clk 0:02:35]}  Bg4 {[%clk 0:02:17]} 14. Bxc6 {[%clk 0:02:09]}  bxc6 {[%clk 0:02:07]} 15. h3 {[%clk 0:02:09]}  Bf5 {[%clk 0:02:04]} 16. Kh1 {[%clk 0:02:05]}  Rab8 {[%clk 0:02:00]} 17. b3 {[%clk 0:02:01]}  cxd4 {[%clk 0:01:55]} 18. cxd4 {[%clk 0:01:58]}  c5 {[%clk 0:01:50]} 19. Be3 {[%clk 0:01:52]}  c4 {[%clk 0:01:50]} 20. bxc4 {[%clk 0:01:51]}  dxc4 {[%clk 0:01:51]} 21. d5 {[%clk 0:01:51]}  Qxe3 {[%clk 0:01:51]} 22. Nd4 {[%clk 0:01:49]}  Bd3 {[%clk 0:01:45]} 23. Nc6 {[%clk 0:01:49]}  Rbe8 {[%clk 0:01:44]} 24. Re1 {[%clk 0:01:46]}  Qxf4 {[%clk 0:01:44]} 25. Qa4 {[%clk 0:01:33]}  dxe5 {[%clk 0:01:41]} 26. Rad1 {[%clk 0:01:28]}  Bh4 {[%clk 0:01:38]} 27. d6 {[%clk 0:01:22]}  Bxe1 {[%clk 0:01:34]} 28. Rxe1 {[%clk 0:01:17]}  Qd2 {[%clk 0:01:16]} 29. Rd1 {[%clk 0:01:15]}  Qc2 {[%clk 0:01:16]} 30. Qxc2 {[%clk 0:01:10]}  Bxc2 {[%clk 0:01:17]} 31. Rd2 {[%clk 0:01:10]}  Ba4 {[%clk 0:01:18]} 32. Nb4 {[%clk 0:00:57]}  c3 {[%clk 0:01:18]} 33. Rd3 {[%clk 0:00:56]}  c2 {[%clk 0:01:18]} 34. Rc3 {[%clk 0:00:54]}  Rc8 {[%clk 0:01:18]} 0-1


[Site "https://www.chess.com"]

[Event "Titled Tuesday Blitz January 03 Early 2023"]
[White "Baskakov, Egor"]
[Black "HSH1987"]
[WhiteFideId "24197866"]
[WhiteElo "2215"]
[BlackElo "2675"]
[Result "1-0"]
[Round "10"]
[TimeControl "180+2"]
[Date "2023.01.03"]
[WhiteClock "0:01:12"]
[BlackClock "0:00:02"]

1. e4 {[%clk 0:03:00]}  c6 {[%clk 0:02:59]} 2. d4 {[%clk 0:03:00]}  d5 {[%clk 0:03:00]} 3. e5 {[%clk 0:03:01]}  Bf5 {[%clk 0:03:00]} 4. Ne2 {[%clk 0:03:01]}  e6 {[%clk 0:02:54]} 5. Ng3 {[%clk 0:03:01]}  Bg6 {[%clk 0:02:54]} 6. h4 {[%clk 0:03:02]}  h5 {[%clk 0:02:42]} 7. Bd3 {[%clk 0:03:01]}  Bxd3 {[%clk 0:02:39]} 8. cxd3 {[%clk 0:03:02]}  g6 {[%clk 0:02:17]} 9. Nd2 {[%clk 0:03:01]}  c5 {[%clk 0:02:13]} 10. dxc5 {[%clk 0:03:00]}  Bxc5 {[%clk 0:02:12]} 11. Nf3 {[%clk 0:03:00]}  Nc6 {[%clk 0:02:09]} 12. d4 {[%clk 0:02:58]}  Be7 {[%clk 0:02:07]} 13. Ne2 {[%clk 0:02:55]}  Nh6 {[%clk 0:02:03]} 14. Bxh6 {[%clk 0:02:51]}  Rxh6 {[%clk 0:02:04]} 15. g3 {[%clk 0:02:49]}  Qb6 {[%clk 0:02:01]} 16. O-O {[%clk 0:02:49]}  Rh8 {[%clk 0:01:58]} 17. Qd2 {[%clk 0:02:47]}  Kf8 {[%clk 0:01:56]} 18. Rab1 {[%clk 0:02:47]}  Kg7 {[%clk 0:01:56]} 19. Qf4 {[%clk 0:02:42]}  Rac8 {[%clk 0:01:52]} 20. Ng5 {[%clk 0:02:42]}  Bxg5 {[%clk 0:01:50]} 21. hxg5 {[%clk 0:02:41]}  Qd8 {[%clk 0:01:35]} 22. Rbc1 {[%clk 0:02:32]}  Re8 {[%clk 0:01:21]} 23. Kg2 {[%clk 0:02:25]}  Ne7 {[%clk 0:01:12]} 24. Rxc8 {[%clk 0:01:48]}  Qxc8 {[%clk 0:01:13]} 25. Qf6+ {[%clk 0:01:47]}  Kg8 {[%clk 0:01:12]} 26. g4 {[%clk 0:01:41]}  Qc2 {[%clk 0:01:03]} 27. Ng3 {[%clk 0:01:36]}  h4 {[%clk 0:00:07]} 28. Rh1 {[%clk 0:01:34]}  Kf8 {[%clk 0:00:07]} 29. Rxh4 {[%clk 0:01:27]}  Ng8 {[%clk 0:00:06]} 30. Qh8 {[%clk 0:01:15]}  Qxb2 {[%clk 0:00:05]} 31. Rh7 {[%clk 0:01:14]}  Qxd4 {[%clk 0:00:01]} 32. Qg7+ {[%clk 0:01:11]}  Ke7 {[%clk 0:00:01]} 33. Qxf7+ {[%clk 0:01:12]}  Kd8 {[%clk 0:00:02]} 34. Qc7# {[%clk 0:01:12]} 1-0


[Site "https://www.chess.com"]

[Event "Titled Tuesday Blitz January 03 Early 2023"]
[White "Wagner, Dennis"]
[Black "Costachi, Mihnea"]
[WhiteFideId "24650684"]
[BlackFideId "1217518"]
[WhiteElo "2595"]
[BlackElo "2476"]
[Result "0-1"]
[Round "10"]
[TimeControl "180+2"]
[Date "2023.01.03"]
[WhiteClock "0:00:02"]
[BlackClock "0:00:22"]

1. d4 {[%clk 0:03:00]}  Nf6 {[%clk 0:02:59]} 2. Nf3 {[%clk 0:03:01]}  d5 {[%clk 0:02:59]} 3. c4 {[%clk 0:03:01]}  c6 {[%clk 0:03:00]} 4. Nc3 {[%clk 0:02:57]}  a6 {[%clk 0:02:59]} 5. Qc2 {[%clk 0:02:53]}  g6 {[%clk 0:02:59]} 6. cxd5 {[%clk 0:02:52]}  cxd5 {[%clk 0:02:59]} 7. Bf4 {[%clk 0:02:52]}  Nc6 {[%clk 0:02:59]} 8. e3 {[%clk 0:02:52]}  Bf5 {[%clk 0:02:59]} 9. Qb3 {[%clk 0:02:52]}  Na5 {[%clk 0:02:54]} 10. Qa4+ {[%clk 0:02:52]}  b5 {[%clk 0:02:52]} 11. Qd1 {[%clk 0:02:44]}  Rc8 {[%clk 0:02:50]} 12. Ne5 {[%clk 0:02:19]}  Nc4 {[%clk 0:02:40]} 13. Bxc4 {[%clk 0:02:13]}  dxc4 {[%clk 0:02:39]} 14. g4 {[%clk 0:01:46]}  Be4 {[%clk 0:02:31]} 15. Nxe4 {[%clk 0:01:44]}  Nxe4 {[%clk 0:02:31]} 16. f3 {[%clk 0:01:39]}  Qa5+ {[%clk 0:02:30]} 17. Ke2 {[%clk 0:01:38]}  Nf6 {[%clk 0:02:25]} 18. e4 {[%clk 0:01:32]}  Bg7 {[%clk 0:02:23]} 19. h4 {[%clk 0:01:20]}  Nd7 {[%clk 0:02:22]} 20. Nxd7 {[%clk 0:01:19]}  Kxd7 {[%clk 0:02:23]} 21. h5 {[%clk 0:01:19]}  c3 {[%clk 0:02:20]} 22. Qb3 {[%clk 0:00:51]}  cxb2 {[%clk 0:02:15]} 23. Rab1 {[%clk 0:00:46]}  Qc3 {[%clk 0:02:03]} 24. Qxf7 {[%clk 0:00:24]}  Qc4+ {[%clk 0:02:04]} 25. Qxc4 {[%clk 0:00:23]}  Rxc4 {[%clk 0:02:04]} 26. Rxb2 {[%clk 0:00:17]}  Bxd4 {[%clk 0:02:01]} 27. Rd2 {[%clk 0:00:17]}  Ke6 {[%clk 0:02:01]} 28. Rxd4 {[%clk 0:00:09]}  Rxd4 {[%clk 0:02:02]} 29. hxg6 {[%clk 0:00:09]}  Ra4 {[%clk 0:01:47]} 30. gxh7 {[%clk 0:00:09]}  Rxa2+ {[%clk 0:01:47]} 31. Ke3 {[%clk 0:00:10]}  Kf6 {[%clk 0:01:39]} 32. Rh5 {[%clk 0:00:09]}  Kg6 {[%clk 0:01:38]} 33. Rg5+ {[%clk 0:00:08]}  Kxh7 {[%clk 0:01:36]} 34. Be5 {[%clk 0:00:04]}  Rg8 {[%clk 0:01:37]} 35. Rh5+ {[%clk 0:00:04]}  Kg6 {[%clk 0:01:38]} 36. Kf4 {[%clk 0:00:03]}  Rf8+ {[%clk 0:01:34]} 37. Kg3 {[%clk 0:00:04]}  Ra3 {[%clk 0:01:35]} 38. Bf4 {[%clk 0:00:04]}  b4 {[%clk 0:01:33]} 39. Rh6+ {[%clk 0:00:04]}  Kg7 {[%clk 0:01:29]} 40. Rb6 {[%clk 0:00:05]}  a5 {[%clk 0:01:23]} 41. g5 {[%clk 0:00:05]}  Ra2 {[%clk 0:01:18]} 42. Be5+ {[%clk 0:00:05]}  Kg8 {[%clk 0:01:15]} 43. f4 {[%clk 0:00:06]}  Re2 {[%clk 0:01:10]} 44. Kf3 {[%clk 0:00:06]}  Re1 {[%clk 0:01:08]} 45. Rh6 {[%clk 0:00:04]}  Kf7 {[%clk 0:01:01]} 46. Ra6 {[%clk 0:00:03]}  b3 {[%clk 0:00:52]} 47. g6+ {[%clk 0:00:03]}  Kg8 {[%clk 0:00:50]} 48. Rxa5 {[%clk 0:00:04]}  Rf1+ {[%clk 0:00:42]} 49. Ke2 {[%clk 0:00:04]}  Rg1 {[%clk 0:00:38]} 50. Rb5 {[%clk 0:00:03]}  Rxg6 {[%clk 0:00:33]} 51. Rxb3 {[%clk 0:00:04]}  Kf7 {[%clk 0:00:32]} 52. Kf3 {[%clk 0:00:04]}  Rfg8 {[%clk 0:00:32]} 53. Rb7 {[%clk 0:00:04]}  Rg3+ {[%clk 0:00:32]} 54. Ke2 {[%clk 0:00:04]}  Rg2+ {[%clk 0:00:32]} 55. Ke3 {[%clk 0:00:04]}  R8g3+ {[%clk 0:00:33]} 56. Kd4 {[%clk 0:00:04]}  Rd2+ {[%clk 0:00:34]} 57. Kc4 {[%clk 0:00:05]}  Re3 {[%clk 0:00:31]} 58. Kc5 {[%clk 0:00:03]}  Rxe4 {[%clk 0:00:30]} 59. Ra7 {[%clk 0:00:03]}  Re1 {[%clk 0:00:29]} 60. Ra8 {[%clk 0:00:02]}  Rc1+ {[%clk 0:00:28]} 61. Kb4 {[%clk 0:00:03]}  Ke6 {[%clk 0:00:26]} 62. Ra6+ {[%clk 0:00:02]}  Kf5 {[%clk 0:00:26]} 63. Rh6 {[%clk 0:00:02]}  Rd7 {[%clk 0:00:23]} 64. Rh5+ {[%clk 0:00:03]}  Ke4 {[%clk 0:00:23]} 65. Rh2 {[%clk 0:00:03]}  Rb7+ {[%clk 0:00:22]} 66. Ka3 {[%clk 0:00:02]}  Rc6 {[%clk 0:00:22]} 0-1


[Site "https://www.chess.com"]